[Event "Condigne Dutch Open 2018"]
[Site "Dieren"]
[Date "2018.07.25"]
[Round "2"]
[White "Chanda, Sandipan"]
[Black "Geurink, Jasper"]
[Result "1-0"]
[ECO "C03"]
[WhiteElo "2548"]
[BlackElo "2348"]
[Annotator "ChessBase"]
[PlyCount "189"]
[EventDate "2018.07.24"]
[EventType "swiss"]
[EventCountry "NED"]
[SourceTitle "playchess.com"]
[Source "ChessBase"]
[SourceQuality "1"]
[TimeControl "40/5400+30:1800+30"]

1. e4 {[%emt 0:00:00]} e6 {[%emt 0:00:00]} 2. d4 {[%emt 0:00:00]} d5 {[%emt 0:00:00]} 3. Nd2 {[%emt 0:00:07]} Be7 {[%emt 0:00:04]} 4. c3 {[%emt 0:03:24]} c5 {[%emt 0:00:19]} 5. dxc5 {[%emt 0:02:06]} Bxc5 {[%emt 0:00:08]} 6. exd5 {[%emt 0:00:33]} exd5 {[%emt 0:00:05]} 7. Bb5+ {[%emt 0:03:30]} Nc6 {[%emt 0:05:46]} 8. Nb3 {[%emt 0:02:15]} Bb6 {[%emt 0:00:12]} 9. Nf3 {[%emt 0:02:17]} Nf6 {[%emt 0:03:48]} 10. Qe2+ {[%emt 0:01:22]} Ne4 {[%emt 0:11:30]} 11. Be3 {[%emt 0:01:56]} O-O {[%emt 0:01:41]} 12. O-O-O {[%emt 0:03:49]} Re8 {[%emt 0:09:51]} 13. Rhe1 {[%emt 0:02:41]} Bg4 {[%emt 0:06:19]} 14. h3 {[%emt 0:25:13]} Bh5 {[%emt 0:02:38]} 15. g4 {[%emt 0:07:17]} Bg6 {[%emt 0:01:01]} 16. h4 {[%emt 0:12:33]} Nb4 {[%emt 0:30:47]} 17. cxb4 {[%emt 0:14:06]} Rc8+ {[%emt 0:00:39]} 18. Bc5 {[%emt 0:03:03]} Re6 {[%emt 0:01:13]} 19. h5 {[%emt 0:01:31]} Nxc5 {[%emt 0:01:06]} 20. bxc5 {[%emt 0:00:06]} Rxe2 {[%emt 0:03:37]} 21. Rxe2 {[%emt 0:00:04]} Qf6 {[%emt 0:01:58]} 22. hxg6 {[%emt 0:01:00]} Qxf3 {[%emt 0:00:38]} 23. Rde1 {[%emt 0:04:22]} Bxc5 {[%emt 0:08:56]} 24. Re8+ {[%emt 0:01:40]} Rxe8 {[%emt 0:00:05]} 25. Rxe8+ {[%emt 0:00:21]} Bf8 {[%emt 0:00:05]} 26. gxh7+ {[%emt 0:00:23]} Kxh7 {[%emt 0:00:05]} 27. Rxf8 {[%emt 0:00:04]} Qxf2 {[%emt 0:00:25]} 28. Bd3+ {[%emt 0:03:07]} g6 {[%emt 0:00:18]} 29. Re8 {[%emt 0:02:34]} Qf4+ {[%emt 0:02:48]} 30. Kb1 {[%emt 0:00:12]} Qxg4 {[%emt 0:00:11]} 31. Re7 {[%emt 0:00:11]} Qf3 {[%emt 0:00:23]} 32. Nc1 {[%emt 0:00:25]} Kg7 {[%emt 0:03:01]} 33. Rxb7 {[%emt 0:00:07]} Qe3 {[%emt 0:00:35]} 34. Kc2 {[%emt 0:02:41]} g5 {[%emt 0:01:15]} 35. Ne2 {[%emt 0:00:09]} a5 {[%emt 0:00:55]} 36. Rb5 {[%emt 0:01:13]} Qe5 {[%emt 0:00:24]} 37. Nc3 {[%emt 0:00:31]} Qh2+ {[%emt 0:00:17]} 38. Kb3 {[%emt 0:00:18]} g4 {[%emt 0:02:39]} 39. Rxd5 {[%emt 0:00:06]} g3 {[%emt 0:00:04]} 40. Rg5+ {[%emt 0:00:30]} Kh6 {[%emt 0:00:52]} 41. Rg8 {[%emt 0:31:59]} Qg1 {[%emt 0:31:08]} 42. Ne2 {[%emt 0:00:00]} Qb6+ {[%emt 0:00:00]} 43. Kc4 {[%emt 0:00:00]} g2 {[%emt 0:00:00]} 44. Nd4 {[%emt 0:00:00]} Qxb2 {[%emt 0:00:00]} 45. Bc2 {[%emt 0:00:00]} Qxa2+ {[%emt 0:00:00]} 46. Kc5 {[%emt 0:00:00]} Qa3+ {[%emt 0:00:00]} 47. Kd5 {[%emt 0:00:00]} Qa2+ {[%emt 0:00:00]} 48. Ke4 {[%emt 0:02:22]} Qb2 {[%emt 0:00:00]} 49. Kd3 {[%emt 0:00:24]} Qb7 {[%emt 0:00:00]} 50. Ke3 {[%emt 0:00:05]} Qe7+ {[%emt 0:00:00]} 51. Kf3 {[%emt 0:00:14]} Qf6+ {[%emt 0:00:00]} 52. Nf5+ {[%emt 0:00:18]} Kh7 {[%emt 0:00:00]} 53. Rxg2 {[%emt 0:00:11]} Qc3+ {[%emt 0:00:00]} 54. Kf4 {[%emt 0:02:31]} Qf6 {[%emt 0:00:00]} 55. Rg5 {[%emt 0:00:50]} Kh8 {[%emt 0:00:00]} 56. Rg3 {[%emt 0:00:39]} Kh7 {[%emt 0:00:00]} 57. Bb3 {[%emt 0:00:30]} Kh8 {[%emt 0:00:00]} 58. Re3 {[%emt 0:00:23]} Kh7 {[%emt 0:00:00]} 59. Bc2 {[%emt 0:00:36]} Kg8 {[%emt 0:00:00]} 60. Bb3 {[%emt 0:00:21]} Kh7 {[%emt 0:00:00]} 61. Rh3+ {[%emt 0:00:17]} Kg8 {[%emt 0:00:00]} 62. Rd3 {[%emt 0:00:17]} Kh7 {[%emt 0:00:00]} 63. Rd7 {[%emt 0:00:07]} Kg8 {[%emt 0:00:00]} 64. Rb7 {[%emt 0:00:38]} Qc3 {[%emt 0:00:00]} 65. Bxf7+ {[%emt 0:00:10]} Kf8 {[%emt 0:00:00]} 66. Bd5 {[%emt 0:00:59]} Ke8 {[%emt 0:00:00]} 67. Be6 {[%emt 0:01:15]} Qc1+ {[%emt 0:00:00]} 68. Ke5 {[%emt 0:00:17]} Qc3+ {[%emt 0:00:00]} 69. Kd6 {[%emt 0:00:14]} Qa3+ {[%emt 0:00:00]} 70. Kc6 {[%emt 0:00:41]} Qa4+ {[%emt 0:00:00]} 71. Kb6 {[%emt 0:00:39]} Qb4+ {[%emt 0:00:00]} 72. Ka6 {[%emt 0:00:07]} Qf4 {[%emt 0:00:00]} 73. Rb5 {[%emt 0:01:03]} Kd8 {[%emt 0:00:28]} 74. Rd5+ {[%emt 0:00:26]} Ke8 {[%emt 0:00:36]} 75. Rc5 {[%emt 0:00:23]} Qf1+ {[%emt 0:00:22]} 76. Kb7 {[%emt 0:00:13]} Qb1+ {[%emt 0:00:12]} 77. Ka6 {[%emt 0:00:52]} Qf1+ {[%emt 0:00:07]} 78. Bc4 {[%emt 0:00:35]} Qf2 {[%emt 0:00:50]} 79. Rxa5 {[%emt 0:00:27]} Kf8 {[%emt 0:01:08]} 80. Nd6 {[%emt 0:00:37]} Ke7 {[%emt 0:00:29]} 81. Nc8+ {[%emt 0:00:17]} Kf8 {[%emt 0:00:37]} 82. Rd5 {[%emt 0:00:15]} Qb2 {[%emt 0:00:46]} 83. Nb6 {[%emt 0:00:16]} Ke7 {[%emt 0:00:25]} 84. Rf5 {[%emt 0:00:18]} Kd6 {[%emt 0:00:37]} 85. Kb7 {[%emt 0:00:22]} Qg7+ {[%emt 0:00:12]} 86. Bf7 {[%emt 0:00:30]} Qg2+ {[%emt 0:00:10]} 87. Bd5 {[%emt 0:00:42]} Qb2 {[%emt 0:00:05]} 88. Rf7 {[%emt 0:00:36]} Kc5 {[%emt 0:00:44]} 89. Rc7+ {[%emt 0:00:26]} Kd4 {[%emt 0:00:05]} 90. Rc4+ {[%emt 0:00:16]} Ke5 {[%emt 0:00:05]} 91. Kc6 {[%emt 0:00:06]} Kf6 {[%emt 0:00:24]} 92. Nd7+ {[%emt 0:00:15]} Ke7 {[%emt 0:01:07]} 93. Re4+ {[%emt 0:00:24]} Kd8 {[%emt 0:00:06]} 94. Nc5 {[%emt 0:00:21]} Qh8 {[%emt 0:00:57]} 95. Nb7+ {[%emt 0:00:15]} 1-0

[Event "Condigne Dutch Open 2018"]
[Site "Dieren"]
[Date "2018.07.25"]
[Round "2"]
[White "Beerdsen, Thomas"]
[Black "Maris, Ivo"]
[Result "1/2-1/2"]
[ECO "C42"]
[WhiteElo "2469"]
[BlackElo "2342"]
[Annotator "ChessBase"]
[PlyCount "41"]
[EventDate "2018.07.24"]
[EventType "swiss"]
[EventCountry "NED"]
[SourceTitle "playchess.com"]
[Source "ChessBase"]
[SourceQuality "1"]
[TimeControl "40/5400+30:1800+30"]

1. e4 {[%emt 0:00:00]} e5 {[%emt 0:01:21]} 2. Nf3 {[%emt 0:00:00]} Nf6 {[%emt 0:00:05]} 3. Nxe5 {[%emt 0:00:04]} d6 {[%emt 0:00:03]} 4. Nf3 {[%emt 0:00:04]} Nxe4 {[%emt 0:00:06]} 5. Nc3 {[%emt 0:00:03]} Nxc3 {[%emt 0:00:13]} 6. dxc3 {[%emt 0:00:05]} Be7 {[%emt 0:00:25]} 7. Bd3 {[%emt 0:01:42]} Nc6 {[%emt 0:01:19]} 8. Be3 {[%emt 0:02:36]} Be6 {[%emt 0:02:07]} 9. Qd2 {[%emt 0:00:27]} Qd7 {[%emt 0:00:58]} 10. a4 {[%emt 0:03:25]} h6 {[%emt 0:03:29]} 11. h3 {[%emt 0:04:36]} Bf5 {[%emt 0:10:35]} 12. O-O {[%emt 0:06:38]} O-O {[%emt 0:02:11]} 13. a5 {[%emt 0:00:29]} a6 {[%emt 0:01:26]} 14. b4 {[%emt 0:01:31]} Ne5 {[%emt 0:03:43]} 15. Be2 {[%emt 0:04:13]} Be6 {[%emt 0:03:38]} 16. Bd4 {[%emt 0:02:37]} Nc6 {[%emt 0:05:00]} 17. Rad1 {[%emt 0:02:32]} Rad8 {[%emt 0:03:57]} 18. Rfe1 {[%emt 0:06:17]} Rfe8 {[%emt 0:01:15]} 19. Be3 {[%emt 0:03:32]} Ne5 {[%emt 0:13:17]} 20. Bd4 {[%emt 0:00:44]} Nc6 {[%emt 0:00:11]} 21. Be3 {[%emt 0:00:04]} 1/2-1/2

[Event "Condigne Dutch Open 2018"]
[Site "Dieren"]
[Date "2018.07.25"]
[Round "2"]
[White "Warmerdam, Max"]
[Black "Saravanan V"]
[Result "1-0"]
[ECO "E61"]
[WhiteElo "2424"]
[BlackElo "1174"]
[Annotator "NA"]
[PlyCount "59"]
[EventDate "2018.07.24"]
[EventType "swiss"]
[EventCountry "NED"]
[SourceTitle "playchess.com"]
[Source "ChessBase"]
[SourceQuality "1"]
[TimeControl "40/5400+30:1800+30"]

1. d4 {[%emt 0:00:00]} Nf6 {[%emt 0:00:00]} 2. c4 {[%emt 0:00:00]} g6 {[%emt 0:00:21]} 3. g3 {[%emt 0:00:00]} Bg7 {[%emt 0:00:05]} 4. Bg2 {[%emt 0:00:00]} O-O {[%emt 0:00:12]} 5. Nc3 {[%emt 0:00:00]} c5 {[%emt 0:01:48]} 6. dxc5 {[%emt 0:00:28]} Qa5 {[%emt 0:02:24]} 7. Qa4 {[%emt 0:00:34]} Qxc5 {[%emt 0:02:46]} 8. Be3 {[%emt 0:00:06]} Qc7 {[%emt 0:00:55]} 9. c5 {[%emt 0:07:51]} Nc6 {[%emt 0:07:09]} 10. Rd1 {[%emt 0:11:06]} d5 {[%emt 0:11:40]} 11. cxd6 {[%emt 0:01:22]} exd6 {[%emt 0:00:06]} 12. Nf3 {[%emt 0:01:34]} d5 {[%emt 0:02:17]} 13. O-O {[%emt 0:01:18]} Rd8 {[%emt 0:01:12]} 14. Qh4 $16 {[%emt 0:03:12]} Ne7 {[%emt 0:11:48]} 15. Nd4 {[%emt 0:04:59]} a6 {[%emt 0:11:36]} 16. Bg5 {[%emt 0:21:02]} Qb6 {[%emt 0:00:59]} 17. Na4 {[%emt 0:15:46]} Qd6 {[%emt 0:01:10]} 18. e4 {[%emt 0:02:40]} dxe4 {[%emt 0:01:03]} 19. Nc6 {[%emt 0:02:40]} Qxd1 {[%emt 0:05:46]} 20. Nxe7+ {[%emt 0:00:45]} Kf8 {[%emt 0:00:05]} 21. Rxd1 {[%emt 0:00:49]} Rxd1+ {[%emt 0:00:11]} 22. Bf1 {[%emt 0:00:02]} Kxe7 {[%emt 0:06:45]} 23. Nc3 {[%emt 0:07:14]} Rd6 {[%emt 0:06:21]} 24. Nxe4 {[%emt 0:02:04]} Rc6 {[%emt 0:00:06]} 25. Bg2 {[%emt 0:02:10]} Re6 {[%emt 0:04:42]} 26. Qxh7 {[%emt 0:09:49]} Kf8 {[%emt 0:01:45]} 27. Nxf6 {[%emt 0:01:21]} Bxf6 {[%emt 0:00:07]} 28. Bd5 {[%emt 0:00:10]} Re1+ {[%emt 0:01:10]} 29. Kg2 {[%emt 0:00:04]} Bg7 {[%emt 0:00:06]} 30. Bf6 {[%emt 0:00:19]} 1-0

[Event "Condigne Dutch Open 2018"]
[Site "Dieren"]
[Date "2018.07.25"]
[Round "2"]
[White "Vrolijk, Liam"]
[Black "Vogel, Jaap"]
[Result "1-0"]
[ECO "C06"]
[WhiteElo "2419"]
[BlackElo "2187"]
[Annotator "NA"]
[PlyCount "69"]
[EventDate "2018.07.24"]
[EventType "swiss"]
[EventCountry "NED"]
[SourceTitle "playchess.com"]
[Source "ChessBase"]
[SourceQuality "1"]
[TimeControl "40/5400+30:1800+30"]

1. e4 {[%emt 0:00:00]} e6 {[%emt 0:00:00]} 2. d4 {[%emt 0:00:00]} d5 {[%emt 0:00:00]} 3. Nd2 {[%emt 0:00:00]} Nf6 {[%emt 0:00:12]} 4. e5 {[%emt 0:00:00]} Nfd7 {[%emt 0:00:05]} 5. Bd3 {[%emt 0:00:00]} c5 {[%emt 0:00:32]} 6. c3 {[%emt 0:00:06]} Nc6 {[%emt 1:32:11]} 7. Ne2 {[%emt 1:33:24]} cxd4 {[%emt 0:00:00]} 8. cxd4 {[%emt 0:00:00]} f6 {[%emt 0:00:00]} 9. exf6 {[%emt 0:00:00]} Nxf6 {[%emt 0:00:00]} 10. Nf3 {[%emt 0:00:00]} Bd6 {[%emt 0:00:00]} 11. O-O {[%emt 0:00:00]} Qc7 {[%emt 0:00:00]} 12. h3 {[%emt 0:00:00]} O-O {[%emt 0:00:00]} 13. Be3 {[%emt 0:00:00]} a6 {[%emt 0:00:00]} 14. Rc1 {[%emt 0:00:00]} Bd7 {[%emt 0:00:00]} 15. Re1 {[%emt 0:00:00]} Rac8 {[%emt 0:00:00]} 16. a3 {[%emt 0:00:00]} Qb8 {[%emt 0:00:00]} 17. Qd2 {[%emt 0:00:00]} e5 {[%emt 0:00:00]} 18. dxe5 {[%emt 0:00:00]} Nxe5 {[%emt 0:00:00]} 19. Nxe5 {[%emt 0:00:00]} Bxe5 {[%emt 0:00:00]} 20. Bd4 {[%emt 0:00:00]} Rxc1 {[%emt 0:00:00]} 21. Rxc1 {[%emt 0:00:00]} Bxd4 {[%emt 0:00:00]} 22. Nxd4 {[%emt 0:00:00]} Ne4 {[%emt 0:00:00]} 23. Bxe4 {[%emt 0:00:00]} dxe4 {[%emt 0:00:00]} 24. Nb3 {[%emt 0:00:00]} Bc6 {[%emt 0:00:00]} 25. Na5 {[%emt 0:00:00]} Rd8 {[%emt 0:00:00]} 26. Qb4 {[%emt 0:00:00]} Qf4 {[%emt 0:00:13]} 27. Qc4+ {[%emt 0:00:00]} Bd5 {[%emt 0:01:06]} 28. Qc3 {[%emt 0:00:00]} b6 {[%emt 0:03:43]} 29. Nc6 {[%emt 0:00:00]} Bxc6 {[%emt 0:00:25]} 30. Qxc6 {[%emt 0:00:00]} e3 {[%emt 0:00:07]} 31. Qe6+ {[%emt 0:00:00]} Qf7 {[%emt 0:02:40]} 32. Qxe3 {[%emt 0:00:00]} b5 {[%emt 0:01:40]} 33. Qb6 {[%emt 0:00:00]} Re8 {[%emt 0:01:42]} 34. Qxa6 {[%emt 0:00:00]} Qf4 {[%emt 0:00:15]} 35. Rc8 {[%emt 0:00:00]} 1-0

[Event "Condigne Dutch Open 2018"]
[Site "Dieren"]
[Date "2018.07.25"]
[Round "2"]
[White "Bosboom, Manuel"]
[Black "Van Meegen, Ruud"]
[Result "1-0"]
[ECO "A08"]
[WhiteElo "2403"]
[BlackElo "2222"]
[Annotator "NA"]
[PlyCount "113"]
[EventDate "2018.07.24"]
[EventType "swiss"]
[EventCountry "NED"]
[SourceTitle "playchess.com"]
[Source "ChessBase"]
[SourceQuality "1"]
[TimeControl "40/5400+30:1800+30"]

1. Nf3 {[%emt 0:00:00]} Nf6 {[%emt 0:00:00]} 2. g3 {[%emt 0:00:00]} d5 {[%emt 0:01:24]} 3. Bg2 {[%emt 0:00:20]} c5 {[%emt 0:00:20]} 4. O-O {[%emt 0:01:41]} g6 {[%emt 0:01:14]} 5. d3 {[%emt 0:03:38]} Bg7 {[%emt 0:00:17]} 6. Nbd2 {[%emt 0:02:31]} O-O {[%emt 0:00:30]} 7. e4 {[%emt 0:00:12]} Nc6 {[%emt 0:00:38]} 8. Re1 {[%emt 0:03:08]} b6 {[%emt 0:12:05]} 9. c3 {[%emt 0:05:49]} dxe4 {[%emt 0:15:01]} 10. dxe4 {[%emt 0:02:27]} Ng4 {[%emt 0:01:25]} 11. e5 {[%emt 0:19:03]} Rb8 {[%emt 0:05:15]} 12. e6 {[%emt 0:01:47]} Bxe6 {[%emt 0:18:07]} 13. Ng5 {[%emt 0:08:13]} Nce5 {[%emt 0:10:06]} 14. Nxe6 {[%emt 0:09:06]} fxe6 {[%emt 0:00:07]} 15. f4 {[%emt 0:01:14]} Nd3 {[%emt 0:01:29]} 16. Qxg4 {[%emt 0:02:11]} Nxc1 {[%emt 0:00:49]} 17. Qxe6+ {[%emt 0:01:57]} Kh8 {[%emt 0:00:10]} 18. Nf3 {[%emt 0:09:29]} Nd3 {[%emt 0:00:08]} 19. Red1 {[%emt 0:04:32]} c4 {[%emt 0:02:43]} 20. Bf1 {[%emt 0:02:50]} b5 {[%emt 0:01:28]} 21. Bxd3 {[%emt 0:01:48]} cxd3 {[%emt 0:00:42]} 22. Ng5 {[%emt 0:03:24]} b4 {[%emt 0:06:08]} 23. Qe3 {[%emt 0:07:09]} bxc3 {[%emt 0:05:01]} 24. bxc3 {[%emt 0:00:04]} Qb6 {[%emt 0:04:57]} 25. Qxb6 {[%emt 0:01:42]} Rxb6 {[%emt 0:00:05]} 26. Rxd3 {[%emt 0:00:02]} Rc8 {[%emt 0:00:44]} 27. Re1 {[%emt 0:02:41]} Bf6 {[%emt 0:00:49]} 28. Ne4 {[%emt 0:00:12]} Rbc6 {[%emt 0:08:34]} 29. Ree3 {[%emt 0:03:35]} Kg7 {[%emt 0:00:22]} 30. Kg2 {[%emt 0:00:46]} Ra6 {[%emt 0:00:33]} 31. Re2 {[%emt 0:00:31]} Rc7 {[%emt 0:00:28]} 32. g4 {[%emt 0:01:46]} Kf7 {[%emt 0:00:10]} 33. Rh3 {[%emt 0:00:11]} Kg8 {[%emt 0:00:24]} 34. Rd2 {[%emt 0:00:24]} Ra4 {[%emt 0:00:56]} 35. Re3 {[%emt 0:01:34]} Kf7 {[%emt 0:00:13]} 36. Kf3 {[%emt 0:00:13]} Rac4 {[%emt 0:00:42]} 37. Rc2 {[%emt 0:00:49]} R7c6 {[%emt 0:00:19]} 38. Rd3 {[%emt 0:00:39]} Re6 {[%emt 0:00:48]} 39. Re2 {[%emt 0:00:50]} Rec6 {[%emt 0:00:15]} 40. Rd7 {[%emt 0:00:34]} Ra4 {[%emt 0:03:32]} 41. g5 {[%emt 0:03:51]} Bg7 {[%emt 0:02:22]} 42. Nd6+ {[%emt 0:08:30]} Rxd6 {[%emt 0:00:38]} 43. Rexe7+ {[%emt 0:00:56]} Kf8 {[%emt 0:00:16]} 44. Rf7+ {[%emt 0:00:03]} Ke8 {[%emt 0:00:26]} 45. Rde7+ {[%emt 0:00:04]} Kd8 {[%emt 0:00:10]} 46. Rxg7 {[%emt 0:00:10]} Rd3+ {[%emt 0:04:17]} 47. Re3 {[%emt 0:03:21]} Rd7 {[%emt 0:01:32]} 48. Rxd7+ {[%emt 0:01:28]} Kxd7 {[%emt 0:00:05]} 49. Kg4 {[%emt 0:00:10]} Rxa2 {[%emt 0:00:20]} 50. Rh3 {[%emt 0:00:02]} Ke6 {[%emt 0:07:45]} 51. Rxh7 {[%emt 0:00:04]} a5 {[%emt 0:00:22]} 52. Rg7 {[%emt 0:00:32]} Rg2+ {[%emt 0:00:59]} 53. Kf3 {[%emt 0:00:19]} Rxh2 {[%emt 0:00:14]} 54. Rxg6+ {[%emt 0:01:10]} Kf7 {[%emt 0:00:19]} 55. Ra6 {[%emt 0:01:00]} Rh3+ {[%emt 0:00:09]} 56. Kg4 {[%emt 0:00:12]} Rxc3 {[%emt 0:00:05]} 57. Rxa5 {[%emt 0:17:36]} 1-0

[Event "Condigne Dutch Open 2018"]
[Site "Dieren"]
[Date "2018.07.25"]
[Round "2"]
[White "Shyaamnikhil P"]
[Black "Ikonnikov, Vyacheslav"]
[Result "1-0"]
[ECO "A30"]
[WhiteElo "2375"]
[BlackElo "2536"]
[Annotator "ChessBase"]
[PlyCount "21"]
[EventDate "2018.07.24"]
[EventType "swiss"]
[EventCountry "NED"]
[SourceTitle "playchess.com"]
[Source "ChessBase"]
[SourceQuality "1"]
[TimeControl "40/5400+30:1800+30"]

1. Nf3 Nf6 2. g3 b6 3. Bg2 Bb7 4. O-O c5 5. c4 g6 6. Nc3 Bg7 7. d3 O-O 8. Bd2 Nc6 9. Ne5 {[%emt 0:04:00]} Na5 {[%emt 0:04:30]} 10. Bxb7 {[%emt 0:00:30]} Nxb7 {[%emt 0:00:30]} 11. Nf3 {[%emt 0:00:30]} 1-0

[Event "Condigne Dutch Open 2018"]
[Site "Dieren"]
[Date "2018.07.25"]
[Round "2"]
[White "Maatman, Nick"]
[Black "Van Foreest, Lucas"]
[Result "0-1"]
[ECO "A30"]
[WhiteElo "2345"]
[BlackElo "2488"]
[Annotator "ChessBase"]
[PlyCount "78"]
[EventDate "2018.07.24"]
[EventType "swiss"]
[EventCountry "NED"]
[SourceTitle "playchess.com"]
[Source "ChessBase"]
[SourceQuality "1"]
[TimeControl "40/5400+30:1800+30"]

1. Nf3 {[%emt 0:00:51]} Nf6 {[%emt 0:00:54]} 2. g3 {[%emt 0:00:08]} b6 {[%emt 0:00:03]} 3. Bg2 {[%emt 0:00:48]} Bb7 {[%emt 0:00:05]} 4. O-O {[%emt 0:00:24]} g6 {[%emt 0:00:08]} 5. d3 {[%emt 0:09:15]} Bg7 {[%emt 0:00:07]} 6. e4 {[%emt 0:00:30]} d6 {[%emt 0:00:05]} 7. c4 {[%emt 0:00:43]} O-O {[%emt 0:00:54]} 8. Nc3 {[%emt 0:00:04]} c5 {[%emt 0:00:05]} 9. h3 {[%emt 0:13:16]} Nc6 {[%emt 0:00:04]} 10. Be3 {[%emt 0:00:18]} Rc8 {[%emt 0:02:46]} 11. Rc1 {[%emt 0:05:44]} Nd7 {[%emt 0:00:04]} 12. Qa4 {[%emt 0:21:37]} a6 {[%emt 0:05:00]} 13. a3 {[%emt 0:05:35]} Nd4 {[%emt 0:03:07]} 14. Kh2 {[%emt 0:11:49]} Nxf3+ {[%emt 0:08:00]} 15. Bxf3 {[%emt 0:00:07]} Ne5 {[%emt 0:00:01]} 16. Be2 {[%emt 0:00:47]} Nc6 {[%emt 0:00:02]} 17. Bf3 {[%emt 0:02:25]} Nd4 {[%emt 0:00:31]} 18. Bg2 {[%emt 0:00:08]} b5 {[%emt 0:03:28]} 19. Qd1 {[%emt 0:03:37]} Qd7 {[%emt 0:03:49]} 20. Nd5 {[%emt 0:01:40]} Rb8 {[%emt 0:01:48]} 21. b4 {[%emt 0:03:12]} e6 {[%emt 0:00:15]} 22. Nc3 {[%emt 0:02:54]} Rfc8 {[%emt 0:02:36]} 23. bxc5 {[%emt 0:01:05]} dxc5 {[%emt 0:00:27]} 24. Bf4 {[%emt 0:02:07]} b4 {[%emt 0:13:41]} 25. Bxb8 {[%emt 0:02:07]} Rxb8 {[%emt 0:00:02]} 26. Na4 {[%emt 0:02:46]} Bc6 {[%emt 0:01:33]} 27. Nxc5 {[%emt 0:00:04]} Qa7 {[%emt 0:00:05]} 28. Na4 {[%emt 0:01:20]} bxa3 {[%emt 0:03:18]} 29. c5 {[%emt 0:00:54]} Nb3 {[%emt 0:00:58]} 30. Nb6 {[%emt 0:00:37]} Nxc5 {[%emt 0:10:11]} 31. Rxc5 {[%emt 0:00:09]} Qxb6 {[%emt 0:00:02]} 32. Qc2 {[%emt 0:01:06]} Bb5 {[%emt 0:01:45]} 33. Rc8+ {[%emt 0:01:51]} Rxc8 {[%emt 0:00:03]} 34. Qxc8+ {[%emt 0:00:04]} Bf8 {[%emt 0:00:01]} 35. Qc3 {[%emt 0:00:42]} Qc5 {[%emt 0:01:26]} 36. Qd2 {[%emt 0:01:27]} Qb4 {[%emt 0:01:05]} 37. Qc2 {[%emt 0:01:41]} Qb2 {[%emt 0:00:19]} 38. Qd1 {[%emt 0:01:41]} a2 {[%emt 0:00:13]} 39. e5 {[%emt 0:01:01]} Bc5 {[%emt 0:00:12]} 0-1

[Event "Condigne Dutch Open 2018"]
[Site "Dieren"]
[Date "2018.07.25"]
[Round "2"]
[White "De Boer, Eelke"]
[Black "De Boer, Bas"]
[Result "1-0"]
[ECO "B48"]
[WhiteElo "2317"]
[BlackElo "2139"]
[Annotator "NA"]
[PlyCount "37"]
[EventDate "2018.07.24"]
[EventType "swiss"]
[EventCountry "NED"]
[SourceTitle "playchess.com"]
[Source "ChessBase"]
[SourceQuality "1"]
[TimeControl "40/5400+30:1800+30"]

1. e4 {[%emt 0:00:00]} c5 {[%emt 0:00:00]} 2. Nf3 {[%emt 0:00:00]} e6 {[%emt 0:00:00]} 3. d4 {[%emt 0:00:00]} cxd4 {[%emt 0:00:00]} 4. Nxd4 {[%emt 0:00:00]} Nc6 {[%emt 0:00:00]} 5. Nc3 {[%emt 0:00:00]} Qc7 {[%emt 0:00:00]} 6. Be3 {[%emt 0:00:04]} a6 {[%emt 0:00:00]} 7. Qf3 {[%emt 0:00:07]} Ne5 {[%emt 0:00:34]} 8. Qg3 {[%emt 0:00:09]} h5 {[%emt 0:00:12]} 9. h4 {[%emt 0:00:08]} Nf6 {[%emt 0:03:09]} 10. O-O-O {[%emt 0:02:28]} b5 {[%emt 0:00:46]} 11. Bf4 {[%emt 0:01:09]} d6 {[%emt 0:01:36]} 12. Bxb5+ {[%emt 0:08:39]} axb5 {[%emt 0:03:04]} 13. Ndxb5 {[%emt 0:00:12]} Qb8 {[%emt 0:03:02]} 14. Rxd6 {[%emt 0:00:53]} Bxd6 {[%emt 0:02:39]} 15. Nxd6+ {[%emt 0:00:29]} Kf8 {[%emt 0:19:10]} 16. Bxe5 {[%emt 0:00:40]} Ng4 {[%emt 0:00:17]} 17. Nxf7 {[%emt 0:03:27]} Nxe5 {[%emt 0:01:20]} 18. Nxe5 {[%emt 0:01:01]} Rh6 {[%emt 0:00:15]} 19. Rd1 {[%emt 0:00:26]} 1-0